bitfinex/quotes_SOLUSD_20251120
["timestamp","ask_amount","ask_price","bid_price","bid_amount"]
[1763674989922,25.82479215,134.37,134.32,0.7]
[1763674990118,7.70383215,134.35,134.32,0.7]
[1763674990709,7.70383215,134.34,134.32,0.7]
[1763674991401,25.82479215,134.35,134.32,0.7]
[1763674991606,19.56003389,134.35,134.32,0.7]
[1763674992324,19.56003389,134.35,134.31,1.78]
[1763674992531,19.56003389,134.35,134.31,2.48]
[1763674993035,11.85620174,134.35,134.32,0.7]
[1763674993214,7.70383215,134.37,134.32,0.7]
[1763674993411,7.70383215,134.38,134.32,8.40383215]
[1763674993640,8.22587622,134.45,134.32,8.40383215]
[1763674993641,50.0,134.43,134.35,7.70383215]
[1763674993932,5.02968308,134.42,134.37,7.70383215]
[1763674994331,7.70383215,134.43,134.38,0.7]
[1763674994833,7.70383215,134.43,134.38,2.48]
[1763674995143,7.70383215,134.44,134.38,10.18383215]
[1763674995449,18.12096,134.43,134.38,10.18383215]
[1763674995613,18.12096,134.44,134.39,0.7]
[1763674995812,7.70383215,134.46,134.4,7.70383215]
[1763674996008,5.031957,134.45,134.4,7.70383215]
[1763674996208,7.70383215,134.47,134.41,8.40383215]
[1763674996441,7.70383215,134.48,134.42,7.70383215]
[1763674996628,7.70383215,134.45,134.41,1.78]
[1763674996943,7.70383215,134.44,134.41,1.78]
[1763674997333,7.70383215,134.44,134.41,2.48]
[1763674997637,7.70383215,134.45,134.41,2.48]
[1763674997827,18.12096,134.41,134.3,2.0]
[1763674998033,18.12096,134.41,134.38,0.7]
[1763674999336,30.86387288,134.4,134.37,1.78]
[1763674999549,7.70383215,134.39,134.35,0.7]
[1763674999841,18.78074573,134.39,134.35,2.48]
[1763675000530,18.78074573,134.39,134.36,0.69]
[1763675000731,18.12096,134.39,134.36,0.69]
[1763675001651,30.19140679,134.39,134.36,0.69]
[1763675001865,24.17763767,134.39,134.36,0.69]
[1763675002738,12.10719088,134.39,134.36,0.69]
[1763675002961,24.17763767,134.39,134.36,0.69]
[1763675003739,24.17763767,134.39,134.35,1.78]
[1763675003941,12.07044679,134.39,134.35,2.47]
[1763675004363,0.33,134.41,134.35,2.47]
[1763675004364,12.07044679,134.38,134.35,2.47]
[1763675004733,12.07044679,134.37,134.32,0.83216157]
[1763675004935,12.07044679,134.37,134.33,2.47]
[1763675005274,50.33,134.42,134.34,12.07044679]
[1763675005435,12.07044679,134.39,134.35,0.69]
[1763675006070,17.06051945,134.41,134.35,12.76044679]
[1763675006248,12.07044679,134.41,134.35,12.76044679]
[1763675006455,12.07044679,134.41,134.36,0.69]
[1763675006769,18.12096,134.4,134.36,12.76044679]
[1763675006974,12.07044679,134.41,134.36,12.76044679]
[1763675007178,12.07044679,134.41,134.37,0.69]
[1763675007538,30.19140679,134.41,134.37,0.69]
[1763675008164,26.36355138,134.41,134.37,0.69]
[1763675008959,18.12096,134.43,134.38,13.85044679]
[1763675009374,18.12096,134.43,134.39,0.69]
[1763675010070,14.84659182,134.43,134.39,0.69]
[1763675011269,103.89054307,134.47,134.39,73.96044679]
[1763675011270,12.07044679,134.45,134.39,73.96044679]
[1763675011472,4.98922702,134.46,134.42,12.07044679]
[1763675011778,4.98815132,134.48,134.43,13.85044679]
[1763675012139,1.08944122,134.49,134.45,12.07044679]
[1763675012451,12.27044679,134.52,134.46,12.07044679]
[1763675012661,12.27044679,134.52,134.47,2.48]
[1763675012860,18.12096,134.49,134.48,1.78]
[1763675013568,12.60044679,134.52,134.48,1.78]
[1763675013869,12.27044679,134.52,134.48,2.48]
[1763675014254,18.12096,134.51,134.48,2.48]
[1763675016373,14.25378477,134.51,134.48,2.48]
[1763675016575,14.25378477,134.51,134.49,0.7]
[1763675016977,0.1,134.53,134.49,0.7]
[1763675017156,0.1,134.53,134.49,12.77044679]
[1763675017574,0.1,134.53,134.5,0.7]
[1763675017990,0.1,134.53,134.5,12.77044679]
[1763675018175,0.1,134.53,134.51,1.78]
[1763675018378,24.84240516,134.54,134.51,1.78]
[1763675018954,12.07044679,134.52,134.51,1.78]
[1763675019175,18.12096,134.52,134.51,1.78]
[1763675020267,18.12096,134.54,134.51,2.48]
[1763675020474,13.69312901,134.54,134.51,2.48]
[1763675022378,12.17044679,134.55,134.51,2.48]
[1763675022682,12.17044679,134.55,134.45,9.78882769]
[1763675022683,5.02310476,134.54,134.52,2.48]
[1763675023004,0.1,134.55,134.52,1.78]
[1763675023157,0.1,134.55,134.53,0.7]
[1763675023692,0.1,134.55,134.53,12.77044679]
[1763675023857,0.1,134.55,134.54,12.07044679]
[1763675024062,0.1,134.55,134.54,12.77044679]
[1763675024496,13.12310603,134.58,134.55,0.7]
[1763675024699,0.2,134.59,134.56,1.78]
[1763675025101,12.27044679,134.59,134.56,1.78]
[1763675025793,12.60044679,134.59,134.56,1.78]
[1763675026299,0.2,134.59,134.57,0.7]
[1763675026495,5.06553316,134.6,134.57,0.7]
[1763675026496,0.33,134.62,134.57,0.7]
[1763675026692,12.07044679,134.61,134.57,0.7]
[1763675027203,12.07044679,134.62,134.57,0.7]
[1763675027377,12.17044679,134.64,134.58,12.07044679]
[1763675027579,12.17044679,134.64,134.59,0.7]
[1763675027808,30.29140679,134.64,134.6,1.28]
[1763675028015,12.17044679,134.64,134.6,1.28]
[1763675028194,18.12096,134.62,134.6,1.28]
[1763675028577,13.50774796,134.62,134.6,1.28]
[1763675029521,12.50044679,134.64,134.6,1.28]
[1763675029522,12.07044679,134.63,134.6,1.28]
[1763675029717,12.07044679,134.62,134.57,0.7]
[1763675029892,12.07044679,134.62,134.58,1.78]
[1763675030394,12.40044679,134.61,134.58,1.78]
[1763675030589,24.01272611,134.61,134.58,1.78]
[1763675030791,0.1,134.64,134.59,0.7]
[1763675030986,30.19140679,134.63,134.59,0.7]
[1763675031302,12.07044679,134.62,134.59,0.7]
[1763675031915,12.07044679,134.62,134.56,12.07044679]
[1763675031916,30.19140679,134.6,134.55,0.7]
[1763675032092,30.19140679,134.6,134.58,1.78]
[1763675032292,12.07044679,134.59,134.55,0.7]
[1763675032488,30.19140679,134.58,134.55,0.7]
[1763675032693,25.67808183,134.58,134.55,2.48]
[1763675032889,18.12096,134.58,134.55,2.48]
[1763675033106,30.19140679,134.58,134.55,2.48]
[1763675033300,18.12096,134.58,134.55,2.48]
[1763675033596,18.12096,134.58,134.55,0.7]
[1763675033803,18.12096,134.58,134.55,2.48]
[1763675034197,18.12096,134.58,134.55,0.7]
[1763675034391,18.12096,134.58,134.55,2.48]
[1763675034804,18.12096,134.58,134.51,0.14216157]
[1763675034805,25.38135317,134.58,134.51,0.14216157]
[1763675035005,25.38135317,134.58,134.49,0.7]
[1763675035006,12.07044679,134.54,134.49,0.7]
[1763675035193,12.07044679,134.54,134.5,1.78]
[1763675035611,12.07044679,134.54,134.5,2.48]
[1763675036316,12.07044679,134.54,134.51,0.7]
[1763675036905,7.44523097,134.54,134.51,0.7]
[1763675037292,12.07044679,134.55,134.51,0.7]
[1763675038504,18.12096,134.54,134.51,0.7]
[1763675038821,15.15422163,134.52,134.5,1.78]
[1763675038994,12.07044679,134.55,134.5,1.78]
[1763675039316,5.02901948,134.55,134.5,0.7]
[1763675039515,0.08,134.55,134.5,2.48]
[1763675039703,5.02901948,134.55,134.5,2.48]
[1763675039909,0.08,134.58,134.52,12.07044679]
[1763675040200,5.02904364,134.58,134.52,12.07044679]
[1763675040397,50.0,134.61,134.54,12.07044679]
[1763675040398,62.07044679,134.61,134.54,12.07044679]
[1763675040611,4.94865952,134.6,134.55,13.85044679]
[1763675040937,15.63841846,134.6,134.55,13.85044679]
[1763675041228,0.08,134.6,134.55,2.48]
[1763675041729,0.08,134.59,134.55,1.78]
[1763675043069,11.08995435,134.59,134.56,0.7]
[1763675043229,0.08,134.61,134.56,0.7]
[1763675043533,4.9871171,134.61,134.56,0.7]
[1763675043705,5.0671171,134.61,134.56,0.7]
[1763675044330,4.9871171,134.61,134.55,13.85044679]
[1763675044517,5.0671171,134.61,134.56,0.7]
[1763675044913,4.9871171,134.61,134.56,0.7]
[1763675045129,13.40645348,134.59,134.56,12.77044679]
[1763675045302,13.40645348,134.59,134.57,0.7]
[1763675045499,13.40645348,134.59,134.55,13.85044679]
[1763675045703,13.40645348,134.59,134.55,1.78]
[1763675045927,0.08,134.58,134.54,1.78]
[1763675046129,17.1424653,134.58,134.51,0.7]
[1763675046318,17.06547376,134.57,134.49,0.7]
[1763675046524,4.99626958,134.56,134.5,1.78]
[1763675046845,4.99626958,134.56,134.5,13.85044679]
[1763675047009,12.15044679,134.57,134.51,0.7]
[1763675047333,13.52449597,134.54,134.51,0.7]
[1763675047631,0.08,134.58,134.52,12.07044679]
[1763675047838,62.15044679,134.58,134.51,12.77044679]
[1763675048038,4.99953884,134.57,134.51,12.77044679]
[1763675049013,4.99953884,134.57,134.52,0.7]
[1763675049214,17.53275918,134.57,134.52,12.77044679]
[1763675049516,17.53275918,134.57,134.52,0.7]
[1763675050034,17.53275918,134.57,134.52,12.77044679]
[1763675050334,17.53275918,134.57,134.53,12.07044679]
[1763675050548,17.53275918,134.57,134.54,2.48]
[1763675051222,14.90972688,134.57,134.54,2.48]
[1763675052813,14.90972688,134.57,134.54,1.78]
[1763675053050,4.97879971,134.56,134.54,1.78]
[1763675053335,13.46707137,134.57,134.54,1.78]
[1763675053538,13.46707137,134.57,134.52,0.7]
[1763675053739,12.07044679,134.56,134.46,61.2]
[1763675053928,25.53751816,134.57,134.52,0.7]
[1763675054122,25.53751816,134.57,134.52,2.48]
[1763675054524,13.46707137,134.57,134.53,0.7]
[1763675055324,70.07741301,134.6,134.53,12.77044679]
[1763675055532,68.29741301,134.6,134.53,12.77044679]
[1763675055747,18.37741301,134.61,134.54,12.77044679]
[1763675055924,18.37741301,134.61,134.55,0.7]
[1763675056120,6.22696622,134.6,134.56,1.78]
[1763675056325,62.15044679,134.6,134.55,0.7]
[1763675056636,62.15044679,134.6,134.56,1.78]
[1763675056836,12.07044679,134.59,134.56,1.78]
[1763675057436,12.98986974,134.58,134.55,1.78]
[1763675058146,12.07044679,134.59,134.55,2.48]
[1763675058334,12.15044679,134.59,134.55,1.78]
[1763675058540,12.07044679,134.58,134.53,0.7]
[1763675058850,12.07044679,134.57,134.53,1.78]
[1763675059143,12.07044679,134.57,134.53,2.48]
[1763675059340,18.29741301,134.58,134.53,1.78]
[1763675059639,18.29741301,134.59,134.54,0.7]
[1763675059827,18.37741301,134.59,134.54,0.7]
[1763675060035,12.15044679,134.59,134.54,0.7]
[1763675061234,12.07044679,134.57,134.52,0.68]
[1763675061427,30.19140679,134.57,134.53,1.78]
[1763675061632,30.19140679,134.57,134.53,2.46]
[1763675061831,18.12096,134.57,134.54,0.68]
[1763675063624,15.09574958,134.57,134.54,0.68]
[1763675064729,0.08,134.56,134.49,61.88]
[1763675065043,0.08,134.56,134.47,112.38882769]
[1763675065044,53.22836863,134.55,134.5,2.46]
[1763675065560,53.22836863,134.55,134.51,0.68]
[1763675065561,23.12899397,134.54,134.51,0.68]
[1763675065763,5.00803397,134.53,134.51,0.68]
[1763675067426,6.22696622,134.61,134.52,44.79501472]
[1763675067754,37.79527693,134.73,134.52,44.79501472]
[1763675067755,0.26231589,134.75,134.68,9.78882769]
[1763675068070,53.98836863,134.78,134.71,3.22836863]
[1763675068255,18.12096,134.75,134.72,1.8]
[1763675068429,18.12096,134.75,134.73,1.8]
[1763675068620,50.76,134.78,134.73,1.8]
[1763675068823,0.66,134.77,134.73,1.8]
[1763675069249,18.12096,134.75,134.73,9.45953387]
[1763675069430,18.12096,134.75,134.73,1.8]
[1763675069952,15.5595504,134.75,134.73,1.8]
[1763675070153,15.5595504,134.75,134.69,0.14216157]
[1763675070327,15.5595504,134.75,134.72,7.65953387]
[1763675071845,0.66,134.77,134.72,7.65953387]
[1763675072653,0.66,134.77,134.73,1.8]
[1763675073842,7.65953387,134.79,134.73,1.8]
[1763675074849,7.65953387,134.79,134.62,2.0]
[1763675074850,7.65953387,134.76,134.62,2.0]
[1763675075051,57.65953387,134.75,134.68,7.65953387]
[1763675075242,57.65953387,134.75,134.69,1.8]
[1763675075643,7.65953387,134.76,134.69,9.45953387]
[1763675075845,57.65953387,134.79,134.72,7.65953387]
[1763675076047,7.65953387,134.79,134.72,7.65953387]
[1763675076356,18.12096,134.76,134.72,7.65953387]
[1763675076554,18.12096,134.75,134.71,7.65953387]
[1763675076731,18.12096,134.75,134.73,1.8]
[1763675078131,13.68611729,134.75,134.73,1.8]
[1763675078330,0.67,134.78,134.73,1.8]
[1763675078540,0.67,134.77,134.73,1.8]
[1763675079936,0.67,134.77,134.73,9.45953387]
[1763675080137,1.8,134.83,134.73,9.45953387]
[1763675080138,0.67,134.84,134.76,0.14216157]
[1763675080453,57.65953387,134.82,134.76,1.8]
[1763675080857,0.67,134.81,134.74,7.65953387]
[1763675081059,0.67,134.81,134.75,1.8]
[1763675081461,0.67,134.81,134.74,7.65953387]
[1763675081651,57.65953387,134.8,134.73,7.65953387]
[1763675081832,0.67,134.79,134.74,1.8]
[1763675082162,50.0,134.8,134.74,1.8]
[1763675082336,57.65953387,134.8,134.74,1.8]
[1763675082659,7.65953387,134.79,134.74,1.8]
[1763675082968,101.8,134.82,134.75,7.65953387]
[1763675083259,7.65953387,134.81,134.74,10.17953387]
[1763675083759,18.12096,134.78,134.74,10.17953387]
[1763675084137,18.12096,134.8,134.74,10.17953387]
[1763675084445,8.32953387,134.81,134.74,10.17953387]
[1763675084654,0.67,134.8,134.74,10.17953387]
[1763675085555,7.65953387,134.79,134.71,0.72]
[1763675086030,0.67,134.78,134.72,9.45953387]
[1763675086229,12.98566881,134.77,134.72,9.45953387]
[1763675086658,12.98566881,134.77,134.72,10.17953387]
[1763675087058,13.65566881,134.77,134.72,9.45953387]
[1763675087359,13.65566881,134.77,134.72,1.8]
[1763675087555,13.65566881,134.77,134.72,9.45953387]
[1763675087857,13.65566881,134.77,134.72,10.17953387]
[1763675088251,10.14759657,134.77,134.72,10.17953387]
[1763675089238,0.67,134.77,134.72,1.8]
[1763675089857,0.67,134.79,134.72,10.17953387]
[1763675090361,51.8,134.82,134.73,7.65953387]
[1763675090362,101.8,134.82,134.73,7.65953387]
[1763675090571,7.65953387,134.79,134.73,7.65953387]
[1763675090740,7.65953387,134.8,134.73,7.65953387]
[1763675091462,7.65953387,134.8,134.73,8.33953387]
[1763675092249,7.65953387,134.8,134.73,0.68]
[1763675092451,2.01680346,134.8,134.73,8.33953387]
[1763675092852,3.21691313,134.8,134.73,3.89691313]
[1763675093252,3.21691313,134.79,134.73,3.89691313]
[1763675093578,3.21691313,134.79,134.73,2.48]
[1763675093945,3.21691313,134.79,134.73,5.69691313]
[1763675094161,3.21691313,134.79,134.74,0.68]
[1763675096143,3.21691313,134.78,134.73,1.8]
[1763675096340,3.21691313,134.78,134.73,2.48]
[1763675096569,3.21691313,134.79,134.74,0.68]
[1763675097678,3.21691313,134.8,134.74,0.68]
[1763675097884,5.13788528,134.79,134.74,0.68]
[1763675098053,3.21691313,134.8,134.74,0.68]
[1763675098547,1.78,134.82,134.74,0.68]
[1763675098743,8.35565857,134.81,134.74,3.89691313]
[1763675098949,5.13874544,134.8,134.75,3.21691313]
[1763675099161,5.13874544,134.8,134.75,3.89691313]
[1763675099367,3.21691313,134.81,134.76,0.68]
[1763675099571,5.14064523,134.8,134.76,0.68]
[1763675099745,3.21691313,134.82,134.76,3.89691313]
[1763675099953,3.21691313,134.82,134.76,0.68]
[1763675099954,5.1406457,134.81,134.76,0.68]
[1763675100567,52.29954526,134.82,134.76,3.89691313]
[1763675100760,3.21691313,134.79,134.73,2.46]
[1763675101085,3.21691313,134.79,134.73,5.67691313]
[1763675101278,3.21691313,134.79,134.73,2.46]
[1763675101463,3.21691313,134.78,134.71,3.89691313]
[1763675101792,3.21691313,134.73,134.67,3.21691313]
[1763675101972,50.0,134.75,134.68,0.68]
[1763675101973,3.21691313,134.74,134.68,0.68]
[1763675102364,3.21691313,134.73,134.66,3.21691313]
[1763675102685,3.21691313,134.73,134.66,3.89691313]
[1763675102905,3.21691313,134.73,134.67,0.68]
[1763675103188,3.21691313,134.72,134.65,5.67691313]
[1763675103491,50.0,134.73,134.66,3.89691313]
[1763675103784,53.21691313,134.73,134.66,3.89691313]
[1763675104280,53.21691313,134.73,134.67,0.68]
[1763675104678,3.21691313,134.73,134.67,0.68]
[1763675105385,3.21691313,134.72,134.67,0.68]
[1763675105985,3.21691313,134.71,134.66,0.68]
[1763675106361,3.21691313,134.7,134.64,3.89691313]
[1763675106565,3.21691313,134.7,134.64,1.78]
[1763675106790,3.21691313,134.7,134.65,0.68]
[1763675107080,50.0,134.69,134.6,0.68]
[1763675107285,3.21691313,134.65,134.6,0.68]
[1763675107882,3.21691313,134.66,134.6,0.68]
[1763675108287,3.21691313,134.65,134.6,0.68]
[1763675108759,1.82589303,134.65,134.6,0.68]
[1763675108959,7.67561796,134.65,134.6,0.68]
[1763675110288,4.9604491,134.66,134.6,8.35561796]
[1763675110583,4.9604491,134.66,134.6,0.68]
[1763675110584,7.67561796,134.66,134.6,0.68]
[1763675110788,7.67561796,134.66,134.61,0.68]
[1763675110984,57.67561796,134.67,134.61,0.68]
[1763675111490,7.67561796,134.66,134.61,0.68]
[1763675111666,12.64363627,134.66,134.61,0.68]
[1763675111867,7.67561796,134.65,134.61,0.68]
[1763675112670,10.09725876,134.64,134.61,0.68]
[1763675112866,4.66235721,134.64,134.61,0.68]
[1763675113378,7.67561796,134.64,134.59,1.98]
[1763675113579,50.0,134.67,134.6,8.35561796]
[1763675113785,7.67561796,134.68,134.62,7.67561796]
[1763675113992,57.67561796,134.69,134.62,7.67561796]
[1763675114170,7.67561796,134.68,134.63,0.68]
[1763675115091,1.24682378,134.68,134.63,0.68]
[1763675116096,57.67561796,134.69,134.63,0.68]
[1763675116277,7.67561796,134.68,134.63,0.68]
[1763675117079,50.0,134.69,134.63,0.68]
[1763675117391,7.67561796,134.68,134.63,0.68]
[1763675118127,50.0,134.69,134.63,0.68]
[1763675118128,7.67561796,134.67,134.63,0.68]
[1763675118279,7.67561796,134.66,134.63,0.68]
[1763675118768,7.67561796,134.67,134.63,0.68]
[1763675119170,50.0,134.71,134.63,0.68]
[1763675119399,7.67561796,134.68,134.63,0.68]
[1763675120593,7.67561796,134.68,134.64,1.78]
[1763675120787,7.67561796,134.67,134.63,0.68]
[1763675121090,7.67561796,134.65,134.62,1.78]
[1763675121601,7.67561796,134.66,134.63,0.71]
[1763675122201,50.0,134.71,134.63,8.38561796]
[1763675122372,7.67561796,134.69,134.63,8.38561796]
[1763675122703,7.67561796,134.71,134.65,7.67561796]
[1763675122871,12.01441447,134.72,134.66,13.79441447]
[1763675123279,5.35904417,134.72,134.67,0.71]
[1763675123507,12.01441447,134.71,134.67,0.71]
[1763675124010,12.01441447,134.76,134.7,12.01441447]
[1763675124176,12.01441447,134.76,134.71,1.78]
[1763675124372,12.01441447,134.76,134.72,0.71]
[1763675124774,12.01441447,134.78,134.72,0.71]
[1763675125082,16.97829276,134.79,134.73,12.01441447]
[1763675125282,14.11158197,134.79,134.73,12.01441447]
[1763675125613,2.0971675,134.79,134.74,0.71]
[1763675125819,12.01441447,134.77,134.71,12.01441447]
[1763675125976,17.05063634,134.76,134.71,2.49]
[1763675126279,12.01441447,134.77,134.72,0.71]
[1763675127072,50.0,134.8,134.73,12.01441447]
[1763675127289,50.0,134.8,134.73,1.78]
[1763675127290,96.57652443,134.78,134.73,1.78]
[1763675127497,12.01441447,134.76,134.73,1.78]
[1763675128601,17.05334047,134.75,134.7,2.49]
[1763675128796,12.01441447,134.75,134.7,2.49]
[1763675128977,12.01441447,134.75,134.71,0.71]
[1763675129375,50.0,134.77,134.71,0.71]
[1763675129575,12.01441447,134.75,134.71,0.71]
[1763675129796,12.01441447,134.75,134.69,1.78]
[1763675129797,12.01441447,134.73,134.69,1.78]
[1763675129989,9.93098926,134.76,134.7,0.71]
[1763675130303,17.05501143,134.75,134.7,0.71]
[1763675130477,5.04059696,134.74,134.7,0.71]
[1763675130679,17.05501143,134.74,134.7,0.71]
[1763675130876,12.01441447,134.75,134.7,0.71]
[1763675131373,9.00079822,134.75,134.7,0.71]
[1763675131590,12.01441447,134.75,134.7,0.71]
[1763675134605,174.38849305,134.81,134.72,12.01441447]
[1763675134606,103.88142223,134.81,134.72,12.01441447]
[1763675134790,12.01441447,134.79,134.73,13.79441447]
[1763675135005,12.01441447,134.77,134.72,0.66]
[1763675135299,12.01441447,134.76,134.73,1.78]
[1763675135505,12.01441447,134.77,134.73,1.78]
[1763675135679,7.43474198,134.77,134.74,0.66]
[1763675136196,50.0,134.79,134.74,0.66]
[1763675136398,12.01441447,134.77,134.74,0.66]
[1763675136786,12.01441447,134.78,134.74,0.66]
[1763675136996,18.12096,134.75,134.74,0.66]
[1763675137514,12.01441447,134.79,134.74,0.66]
[1763675137515,18.12096,134.76,134.74,0.66]
[1763675137686,14.91969151,134.76,134.74,0.66]
[1763675137882,12.01441447,134.78,134.74,0.66]
[1763675138095,12.01441447,134.77,134.74,2.44]
[1763675138300,4.9685479,134.8,134.74,2.44]
[1763675138501,12.01441447,134.77,134.74,2.44]
[1763675138903,12.01441447,134.77,134.75,0.66]
[1763675139682,26.30484856,134.77,134.75,0.66]
[1763675140704,100.0,134.81,134.69,0.14216157]
[1763675140705,50.0,134.81,134.69,0.14216157]
[1763675140915,16.98397688,134.8,134.74,12.01441447]
[1763675141106,18.12096,134.77,134.75,1.78]
[1763675141304,18.12096,134.77,134.75,13.79441447]
[1763675141490,18.12096,134.77,134.76,0.66]
[1763675141894,18.12096,134.78,134.76,0.66]
[1763675143009,12.01441447,134.77,134.72,0.66]
[1763675143186,12.01441447,134.76,134.73,1.78]
[1763675143609,12.01441447,134.76,134.74,0.66]
[1763675143986,30.13537447,134.77,134.74,0.66]
[1763675144509,12.01441447,134.76,134.73,1.78]
[1763675144918,12.01441447,134.75,134.69,12.01441447]
[1763675145098,12.01441447,134.75,134.7,2.44]
[1763675145419,12.01441447,134.75,134.71,0.66]
[1763675145910,6.12881387,134.75,134.71,0.66]
[1763675146497,12.01441447,134.75,134.71,0.66]
[1763675146699,4.96959856,134.76,134.71,0.66]
[1763675146903,12.01441447,134.75,134.71,0.66]
[1763675147229,16.98401303,134.76,134.71,0.66]
[1763675147709,18.12096,134.77,134.72,12.01441447]
[1763675148012,11.19297289,134.77,134.72,12.01441447]
[1763675148192,16.16266948,134.77,134.73,0.66]
[1763675148792,4.96969659,134.77,134.73,0.66]
[1763675149024,17.02799798,134.76,134.72,1.78]
[1763675149322,12.01441447,134.74,134.71,2.44]
[1763675150218,13.39011536,134.73,134.71,2.44]
[1763675151588,12.01441447,134.73,134.71,1.78]
[1763675151818,12.01441447,134.72,134.67,0.72]
[1763675151993,30.13537447,134.71,134.67,2.5]
[1763675152195,30.13537447,134.71,134.64,0.72]
[1763675152196,30.13537447,134.68,134.64,0.72]
[1763675152600,12.01441447,134.67,134.64,0.72]
[1763675154144,24.17672072,134.65,134.63,1.78]
[1763675154421,24.17672072,134.65,134.62,0.72]
[1763675154633,62.01441447,134.63,134.59,0.2]
[1763675154800,22.01636992,134.62,134.59,0.92]
[1763675154993,62.16230625,134.65,134.6,0.72]
[1763675155322,12.01441447,134.61,134.59,0.2]
[1763675155504,12.01441447,134.6,134.59,0.2]
[1763675156304,9.36369314,134.6,134.59,0.2]
[1763675156521,18.12096,134.6,134.59,0.2]
[1763675156716,12.01441447,134.6,134.59,0.2]
[1763675158301,9.42974685,134.6,134.59,0.2]
[1763675159028,12.01441447,134.6,134.59,0.2]
[1763675159898,30.13537447,134.6,134.59,0.2]
[1763675160325,26.93433913,134.6,134.59,0.2]
[1763675162412,23.07766983,134.6,134.59,0.2]
[1763675163732,11.06325536,134.6,134.59,0.2]
[1763675164037,23.07766983,134.6,134.59,0.2]
[1763675164631,12.01441447,134.6,134.59,0.2]
[1763675166335,12.01441447,134.6,134.59,0.92]
[1763675166519,23.08325593,134.62,134.59,0.2]
[1763675166837,12.01441447,134.6,134.59,0.2]
[1763675167614,21.97411532,134.6,134.59,0.2]
[1763675167827,81.90510458,134.6,134.59,0.2]
[1763675168620,69.89069011,134.6,134.59,0.2]
[1763675168818,31.90510458,134.6,134.59,0.2]
[1763675169205,19.89069011,134.6,134.59,0.2]
[1763675169410,30.13537447,134.6,134.59,0.2]
[1763675170005,81.89250197,134.6,134.59,0.2]
[1763675170345,18.12096,134.57,134.55,0.2]
[1763675170520,128.97735396,134.56,134.55,0.2]
[1763675170720,18.12096,134.51,134.49,0.92]
[1763675171033,12.01441447,134.5,134.49,0.2]
[1763675172728,7.88332081,134.5,134.49,0.2]
[1763675173011,12.01441447,134.5,134.49,0.2]
[1763675174233,12.01441447,134.5,134.49,0.92]
[1763675174832,8.66387572,134.5,134.49,0.92]
[1763675176916,3.0056492,134.5,134.49,0.92]
[1763675179027,12.01441447,134.5,134.49,0.92]
[1763675180939,30.13537447,134.5,134.49,0.2]
[1763675183135,24.47603063,134.5,134.49,0.2]
[1763675184225,12.46161616,134.5,134.49,0.2]
[1763675184426,12.01441447,134.5,134.49,0.88]
[1763675184641,12.01441447,134.51,134.49,0.88]
[1763675184850,7.68827689,134.52,134.5,0.68]
[1763675185039,21.01196231,134.52,134.5,0.68]
[1763675185248,2.89100231,134.52,134.5,0.68]
[1763675185551,7.68827689,134.54,134.5,0.68]
[1763675185755,4.92049826,134.58,134.51,9.93098926]
[1763675185963,7.68827689,134.55,134.51,9.93098926]
[1763675186122,7.68827689,134.55,134.52,0.68]
[1763675186323,1.78,134.6,134.52,0.68]
[1763675186324,6.20707082,134.63,134.54,7.68827689]
[1763675186529,12.61179575,134.63,134.58,0.14216157]
[1763675186830,12.61179575,134.63,134.59,1.78]
[1763675186831,7.68827689,134.63,134.59,1.78]
[1763675187062,2.81287601,134.63,134.59,1.78]
[1763675187843,0.69,134.66,134.59,1.78]
[1763675188038,7.68827689,134.63,134.59,1.78]
[1763675188240,4.92351886,134.67,134.6,9.93098926]